[Event "Titled Tuesday Blitz April 12 Early 2022"]
[White "Sjugirov, Sanan"]
[Black "Dubov, Daniil"]
[WhiteFideId "4189302"]
[BlackFideId "24126055"]
[WhiteElo "2602"]
[BlackElo "2791"]
[Result "1-0"]
[Round "10"]
[TimeControl "180+1"]
[Date "2022.04.12"]
[WhiteClock "0:00:23"]
[BlackClock "0:00:46"]

1. e4 {[%clk 0:03:00]}  c5 {[%clk 0:02:57]} 2. Nf3 {[%clk 0:03:01]}  e6 {[%clk 0:02:57]} 3. d4 {[%clk 0:03:01]}  cxd4 {[%clk 0:02:58]} 4. Nxd4 {[%clk 0:03:01]}  a6 {[%clk 0:02:59]} 5. Bd3 {[%clk 0:03:01]}  Bc5 {[%clk 0:02:57]} 6. Nb3 {[%clk 0:03:01]}  Ba7 {[%clk 0:02:57]} 7. Qe2 {[%clk 0:02:55]}  Ne7 {[%clk 0:02:55]} 8. Nc3 {[%clk 0:02:52]}  O-O {[%clk 0:02:55]} 9. Be3 {[%clk 0:02:51]}  Nbc6 {[%clk 0:02:54]} 10. O-O-O {[%clk 0:02:46]}  b5 {[%clk 0:02:52]} 11. Kb1 {[%clk 0:02:39]}  b4 {[%clk 0:02:42]} 12. Na4 {[%clk 0:02:39]}  d5 {[%clk 0:02:36]} 13. exd5 {[%clk 0:02:25]}  Nxd5 {[%clk 0:02:35]} 14. Be4 {[%clk 0:02:11]}  Bxe3 {[%clk 0:02:29]} 15. fxe3 {[%clk 0:02:09]}  Qe7 {[%clk 0:02:15]} 16. Bxd5 {[%clk 0:02:05]}  exd5 {[%clk 0:02:15]} 17. Nb6 {[%clk 0:02:05]}  Rb8 {[%clk 0:02:15]} 18. Nxd5 {[%clk 0:02:05]}  Qe5 {[%clk 0:02:15]} 19. Qf3 {[%clk 0:01:58]}  Bf5 {[%clk 0:02:11]} 20. Qf4 {[%clk 0:01:52]}  Rfe8 {[%clk 0:01:59]} 21. Qxe5 {[%clk 0:01:40]}  Rxe5 {[%clk 0:01:52]} 22. Rd2 {[%clk 0:01:37]}  a5 {[%clk 0:01:39]} 23. Nc1 {[%clk 0:01:01]}  h5 {[%clk 0:01:29]} 24. h3 {[%clk 0:00:50]}  h4 {[%clk 0:01:27]} 25. b3 {[%clk 0:00:49]}  Be6 {[%clk 0:01:14]} 26. Rhd1 {[%clk 0:00:47]}  Na7 {[%clk 0:01:00]} 27. Kb2 {[%clk 0:00:40]}  Nb5 {[%clk 0:00:58]} 28. Ne7+ {[%clk 0:00:34]}  Kh7 {[%clk 0:00:57]} 29. Nc6 {[%clk 0:00:35]}  Rxe3 {[%clk 0:00:50]} 30. Nxb8 {[%clk 0:00:34]}  a4 {[%clk 0:00:51]} 31. Nc6 {[%clk 0:00:27]}  a3+ {[%clk 0:00:50]} 32. Ka1 {[%clk 0:00:27]}  Nc3 {[%clk 0:00:49]} 33. Rf1 {[%clk 0:00:26]}  Ne4 {[%clk 0:00:46]} 34. Re2 {[%clk 0:00:23]} 1-0


[Site "https://www.chess.com"]

[Event "Titled Tuesday Blitz April 12 Early 2022"]
[White "Tasev, Dejan"]
[Black "Sanchez, Robert"]
[WhiteFideId "936618"]
[BlackFideId "2034360"]
[WhiteElo "2253"]
[BlackElo "2385"]
[Result "1-0"]
[Round "10"]
[TimeControl "180+1"]
[Date "2022.04.13"]
[WhiteClock "0:01:45"]
[BlackClock "0:01:41"]

1. e4 {[%clk 0:03:00]}  e6 {[%clk 0:02:59]} 2. d4 {[%clk 0:03:00]}  d5 {[%clk 0:03:00]} 3. Nc3 {[%clk 0:03:01]}  Nf6 {[%clk 0:03:00]} 4. e5 {[%clk 0:03:01]}  Nfd7 {[%clk 0:03:00]} 5. f4 {[%clk 0:03:01]}  c5 {[%clk 0:03:01]} 6. Nf3 {[%clk 0:03:01]}  Nc6 {[%clk 0:03:01]} 7. Be3 {[%clk 0:03:01]}  Be7 {[%clk 0:03:02]} 8. Qd2 {[%clk 0:03:01]}  O-O {[%clk 0:03:02]} 9. Be2 {[%clk 0:03:01]}  a6 {[%clk 0:03:02]} 10. O-O {[%clk 0:03:01]}  cxd4 {[%clk 0:03:02]} 11. Nxd4 {[%clk 0:03:01]}  Nxd4 {[%clk 0:03:02]} 12. Bxd4 {[%clk 0:03:01]}  Nc5 {[%clk 0:03:02]} 13. Nd1 {[%clk 0:02:56]}  Ne4 {[%clk 0:03:01]} 14. Qe3 {[%clk 0:02:56]}  Bd7 {[%clk 0:03:00]} 15. Nf2 {[%clk 0:02:56]}  Nxf2 {[%clk 0:02:59]} 16. Rxf2 {[%clk 0:02:52]}  Rc8 {[%clk 0:02:59]} 17. c3 {[%clk 0:02:52]}  Rc6 {[%clk 0:02:31]} 18. Raf1 {[%clk 0:02:50]}  g6 {[%clk 0:02:30]} 19. Bd3 {[%clk 0:02:49]}  Qc7 {[%clk 0:02:20]} 20. g4 {[%clk 0:02:44]}  Bc5 {[%clk 0:02:19]} 21. f5 {[%clk 0:02:42]}  Bxd4 {[%clk 0:02:20]} 22. cxd4 {[%clk 0:02:42]}  f6 {[%clk 0:02:14]} 23. fxg6 {[%clk 0:02:39]}  hxg6 {[%clk 0:02:14]} 24. Rxf6 {[%clk 0:02:19]}  Rxf6 {[%clk 0:02:14]} 25. Rxf6 {[%clk 0:02:19]}  Be8 {[%clk 0:02:12]} 26. Bxg6 {[%clk 0:02:12]}  Rc1+ {[%clk 0:02:04]} 27. Kg2 {[%clk 0:02:10]}  Bxg6 {[%clk 0:01:55]} 28. Rxg6+ {[%clk 0:02:09]}  Kf7 {[%clk 0:01:56]} 29. Rf6+ {[%clk 0:02:02]}  Ke7 {[%clk 0:01:55]} 30. Qg5 {[%clk 0:01:57]}  Rc2+ {[%clk 0:01:41]} 31. Kg3 {[%clk 0:01:45]} 1-0


[Site "https://www.chess.com"]

[Event "Titled Tuesday Blitz April 12 Early 2022"]
[White "Taspinar, Yanki"]
[Black "Pichot, Alan"]
[WhiteFideId "34561188"]
[BlackFideId "110973"]
[WhiteElo "1518"]
[BlackElo "2579"]
[Result "1/2-1/2"]
[Round "10"]
[TimeControl "180+1"]
[Date "2022.04.12"]
[WhiteClock "0:00:10"]
[BlackClock "0:00:09"]

1. c4 {[%clk 0:02:59]}  Nf6 {[%clk 0:02:57]} 2. Nf3 {[%clk 0:02:59]}  e6 {[%clk 0:02:56]} 3. d4 {[%clk 0:02:58]}  d5 {[%clk 0:02:56]} 4. cxd5 {[%clk 0:02:55]}  exd5 {[%clk 0:02:56]} 5. Nc3 {[%clk 0:02:55]}  c6 {[%clk 0:02:57]} 6. Bg5 {[%clk 0:02:54]}  Bf5 {[%clk 0:02:57]} 7. e3 {[%clk 0:02:54]}  Nbd7 {[%clk 0:02:57]} 8. Bd3 {[%clk 0:02:53]}  Bxd3 {[%clk 0:02:56]} 9. Qxd3 {[%clk 0:02:54]}  Bd6 {[%clk 0:02:56]} 10. O-O {[%clk 0:02:53]}  O-O {[%clk 0:02:57]} 11. h3 {[%clk 0:02:49]}  h6 {[%clk 0:02:55]} 12. Bh4 {[%clk 0:02:48]}  Re8 {[%clk 0:02:54]} 13. Ne2 {[%clk 0:02:40]}  Qb6 {[%clk 0:02:53]} 14. b3 {[%clk 0:02:34]}  Ne4 {[%clk 0:02:53]} 15. Nd2 {[%clk 0:01:57]}  a5 {[%clk 0:02:34]} 16. Nxe4 {[%clk 0:01:53]}  Rxe4 {[%clk 0:02:35]} 17. Bg3 {[%clk 0:01:53]}  Bf8 {[%clk 0:02:34]} 18. Nc3 {[%clk 0:01:50]}  Re6 {[%clk 0:02:34]} 19. Rac1 {[%clk 0:01:49]}  Qa6 {[%clk 0:02:33]} 20. Qxa6 {[%clk 0:01:47]}  Rxa6 {[%clk 0:02:34]} 21. Rc2 {[%clk 0:01:46]}  f5 {[%clk 0:02:32]} 22. Re1 {[%clk 0:01:43]}  g5 {[%clk 0:02:31]} 23. f3 {[%clk 0:01:38]}  Bb4 {[%clk 0:02:27]} 24. Bf2 {[%clk 0:01:32]}  Ra8 {[%clk 0:02:27]} 25. Ree2 {[%clk 0:01:28]}  Rae8 {[%clk 0:02:27]} 26. Nd1 {[%clk 0:01:19]}  c5 {[%clk 0:02:23]} 27. Kf1 {[%clk 0:01:17]}  cxd4 {[%clk 0:02:14]} 28. exd4 {[%clk 0:01:18]}  Rxe2 {[%clk 0:02:14]} 29. Rxe2 {[%clk 0:01:18]}  Rc8 {[%clk 0:02:15]} 30. Be1 {[%clk 0:01:11]}  f4 {[%clk 0:01:53]} 31. Bxb4 {[%clk 0:01:07]}  axb4 {[%clk 0:01:54]} 32. Ke1 {[%clk 0:01:07]}  Rc1 {[%clk 0:01:50]} 33. Re7 {[%clk 0:01:02]}  Nf8 {[%clk 0:01:41]} 34. Re5 {[%clk 0:00:54]}  Ng6 {[%clk 0:01:36]} 35. Rxd5 {[%clk 0:00:38]}  Rc2 {[%clk 0:01:35]} 36. Nf2 {[%clk 0:00:33]}  Nh4 {[%clk 0:01:34]} 37. Kf1 {[%clk 0:00:28]}  Rc1+ {[%clk 0:01:30]} 38. Ke2 {[%clk 0:00:28]}  Nxg2 {[%clk 0:01:31]} 39. Ng4 {[%clk 0:00:28]}  Rc2+ {[%clk 0:01:14]} 40. Kd3 {[%clk 0:00:23]}  Ne1+ {[%clk 0:01:04]} 41. Ke4 {[%clk 0:00:24]}  Re2+ {[%clk 0:01:05]} 42. Kf5 {[%clk 0:00:24]}  Nxf3 {[%clk 0:01:06]} 43. Nxh6+ {[%clk 0:00:21]}  Kg7 {[%clk 0:00:57]} 44. Ng4 {[%clk 0:00:21]}  Re7 {[%clk 0:00:53]} 45. Rd6 {[%clk 0:00:17]}  Rf7+ {[%clk 0:00:50]} 46. Ke4 {[%clk 0:00:17]}  Ng1 {[%clk 0:00:46]} 47. Ne5 {[%clk 0:00:17]}  f3 {[%clk 0:00:43]} 48. Rg6+ {[%clk 0:00:12]}  Kh7 {[%clk 0:00:43]} 49. Nxf7 {[%clk 0:00:08]}  Kxg6 {[%clk 0:00:34]} 50. Ne5+ {[%clk 0:00:08]}  Kf6 {[%clk 0:00:35]} 51. Nxf3 {[%clk 0:00:09]}  Nxh3 {[%clk 0:00:35]} 52. d5 {[%clk 0:00:07]}  g4 {[%clk 0:00:33]} 53. Nh4 {[%clk 0:00:07]}  Kg5 {[%clk 0:00:27]} 54. Ng2 {[%clk 0:00:07]}  Kf6 {[%clk 0:00:20]} 55. Ne3 {[%clk 0:00:07]}  g3 {[%clk 0:00:19]} 56. Kf3 {[%clk 0:00:07]}  Ke5 {[%clk 0:00:19]} 57. Kxg3 {[%clk 0:00:08]}  Ng5 {[%clk 0:00:19]} 58. Kf2 {[%clk 0:00:08]}  Kd4 {[%clk 0:00:18]} 59. d6 {[%clk 0:00:08]}  Ne4+ {[%clk 0:00:18]} 60. Ke2 {[%clk 0:00:09]}  Nxd6 {[%clk 0:00:17]} 61. Nc2+ {[%clk 0:00:08]}  Kc3 {[%clk 0:00:17]} 62. Ne3 {[%clk 0:00:09]}  Kb2 {[%clk 0:00:17]} 63. Nd5 {[%clk 0:00:09]}  Kxa2 {[%clk 0:00:08]} 64. Nxb4+ {[%clk 0:00:09]}  Kxb3 {[%clk 0:00:07]} 65. Nd5 {[%clk 0:00:10]}  Kc4 {[%clk 0:00:06]} 66. Nb6+ {[%clk 0:00:11]}  Kc5 {[%clk 0:00:06]} 67. Nd7+ {[%clk 0:00:11]}  Kc6 {[%clk 0:00:07]} 68. Ne5+ {[%clk 0:00:11]}  Kd5 {[%clk 0:00:07]} 69. Nd3 {[%clk 0:00:12]}  b5 {[%clk 0:00:08]} 70. Kd2 {[%clk 0:00:12]}  Kd4 {[%clk 0:00:08]} 71. Kc2 {[%clk 0:00:12]}  Kc4 {[%clk 0:00:06]} 72. Nb2+ {[%clk 0:00:12]}  Kb4 {[%clk 0:00:06]} 73. Nd3+ {[%clk 0:00:11]}  Ka3 {[%clk 0:00:07]} 74. Kc3 {[%clk 0:00:11]}  Ne4+ {[%clk 0:00:08]} 75. Kd4 {[%clk 0:00:11]}  Nd2 {[%clk 0:00:06]} 76. Kc5 {[%clk 0:00:11]}  Ka4 {[%clk 0:00:06]} 77. Nb2+ {[%clk 0:00:11]}  Ka5 {[%clk 0:00:07]} 78. Nd3 {[%clk 0:00:10]}  Nb3+ {[%clk 0:00:08]} 79. Kc6 {[%clk 0:00:10]}  Nd4+ {[%clk 0:00:07]} 80. Kc5 {[%clk 0:00:10]}  Ne6+ {[%clk 0:00:07]} 81. Kd5 {[%clk 0:00:10]}  Ng5 {[%clk 0:00:06]} 82. Kc5 {[%clk 0:00:09]}  Ne4+ {[%clk 0:00:06]} 83. Kd4 {[%clk 0:00:09]}  Nd2 {[%clk 0:00:07]} 84. Kc3 {[%clk 0:00:09]}  Nc4 {[%clk 0:00:07]} 85. Kb3 {[%clk 0:00:09]}  Nb6 {[%clk 0:00:07]} 86. Nb4 {[%clk 0:00:09]}  Nd7 {[%clk 0:00:07]} 87. Nc6+ {[%clk 0:00:09]}  Kb6 {[%clk 0:00:08]} 88. Nd4 {[%clk 0:00:10]}  Nc5+ {[%clk 0:00:08]} 89. Kc3 {[%clk 0:00:10]}  Na6 {[%clk 0:00:09]} 90. Nxb5 {[%clk 0:00:10]} 1/2-1/2


[Site "https://www.chess.com"]

[Event "Titled Tuesday Blitz April 12 Early 2022"]
[White "Timofeev, Artyom"]
[Black "Andreikin, Dmitry"]
[WhiteFideId "4140419"]
[BlackFideId "4158814"]
[WhiteElo "2594"]
[BlackElo "2736"]
[Result "1-0"]
[Round "10"]
[TimeControl "180+1"]
[Date "2022.04.12"]
[WhiteClock "0:01:19"]
[BlackClock "0:01:41"]

1. e4 {[%clk 0:03:00]}  c5 {[%clk 0:02:59]} 2. Nf3 {[%clk 0:03:00]}  d6 {[%clk 0:02:59]} 3. Bc4 {[%clk 0:02:59]}  e6 {[%clk 0:02:58]} 4. O-O {[%clk 0:02:59]}  Nc6 {[%clk 0:02:57]} 5. Re1 {[%clk 0:02:58]}  g5 {[%clk 0:02:57]} 6. d4 {[%clk 0:02:22]}  g4 {[%clk 0:02:57]} 7. d5 {[%clk 0:02:22]}  gxf3 {[%clk 0:02:57]} 8. dxc6 {[%clk 0:02:22]}  fxg2 {[%clk 0:02:54]} 9. Bb5 {[%clk 0:02:18]}  bxc6 {[%clk 0:02:46]} 10. Bxc6+ {[%clk 0:02:17]}  Bd7 {[%clk 0:02:47]} 11. Bxa8 {[%clk 0:02:16]}  Qxa8 {[%clk 0:02:48]} 12. Nc3 {[%clk 0:02:14]}  Bc6 {[%clk 0:02:45]} 13. Bf4 {[%clk 0:02:13]}  Qd8 {[%clk 0:02:41]} 14. Qe2 {[%clk 0:02:00]}  Ne7 {[%clk 0:02:33]} 15. Bg5 {[%clk 0:01:54]}  Rg8 {[%clk 0:02:31]} 16. Qh5 {[%clk 0:01:53]}  Qb8 {[%clk 0:02:26]} 17. Rad1 {[%clk 0:01:35]}  Qxb2 {[%clk 0:02:19]} 18. Bf6 {[%clk 0:01:35]}  Ng6 {[%clk 0:02:13]} 19. Rb1 {[%clk 0:01:31]}  Qxc2 {[%clk 0:02:11]} 20. Qxh7 {[%clk 0:01:24]}  Ne7 {[%clk 0:01:56]} 21. Rb8+ {[%clk 0:01:20]}  Kd7 {[%clk 0:01:56]} 22. Qxf7 {[%clk 0:01:20]}  Qd2 {[%clk 0:01:42]} 23. Qe8+ {[%clk 0:01:19]}  Kc7 {[%clk 0:01:41]} 24. Qd8# {[%clk 0:01:19]} 1-0


[Site "https://www.chess.com"]

[Event "Titled Tuesday Blitz April 12 Early 2022"]
[White "Yang, Kaiqi"]
[Black "Suarez Uriel, Adrian"]
[WhiteFideId "8604398"]
[BlackFideId "22230874"]
[WhiteElo "2373"]
[BlackElo "2316"]
[Result "1-0"]
[Round "10"]
[TimeControl "180+1"]
[Date "2022.04.13"]
[WhiteClock "0:00:12"]
[BlackClock "0:00:42"]

1. e4 {[%clk 0:03:00]}  c5 {[%clk 0:02:56]} 2. Nf3 {[%clk 0:03:00]}  Nc6 {[%clk 0:02:55]} 3. Bb5 {[%clk 0:02:59]}  g6 {[%clk 0:02:55]} 4. O-O {[%clk 0:02:59]}  Bg7 {[%clk 0:02:55]} 5. c3 {[%clk 0:02:58]}  Nf6 {[%clk 0:02:54]} 6. d4 {[%clk 0:02:58]}  cxd4 {[%clk 0:02:51]} 7. cxd4 {[%clk 0:02:54]}  Nxe4 {[%clk 0:02:51]} 8. d5 {[%clk 0:02:53]}  Nd6 {[%clk 0:02:48]} 9. Ba4 {[%clk 0:02:48]}  Nb8 {[%clk 0:02:45]} 10. Nc3 {[%clk 0:02:41]}  O-O {[%clk 0:02:43]} 11. Bf4 {[%clk 0:02:40]}  a6 {[%clk 0:02:42]} 12. Re1 {[%clk 0:02:38]}  b5 {[%clk 0:02:42]} 13. Bb3 {[%clk 0:02:36]}  Nc4 {[%clk 0:02:42]} 14. Bxc4 {[%clk 0:02:18]}  bxc4 {[%clk 0:02:43]} 15. Qe2 {[%clk 0:02:16]}  Re8 {[%clk 0:02:34]} 16. Qxc4 {[%clk 0:01:36]}  d6 {[%clk 0:02:30]} 17. Nd4 {[%clk 0:01:27]}  Bd7 {[%clk 0:02:29]} 18. Rad1 {[%clk 0:01:25]}  Ra7 {[%clk 0:02:27]} 19. Qe2 {[%clk 0:01:18]}  Rc7 {[%clk 0:02:25]} 20. Bg5 {[%clk 0:01:12]}  Qc8 {[%clk 0:02:08]} 21. Qe3 {[%clk 0:01:05]}  Bg4 {[%clk 0:02:05]} 22. Rd2 {[%clk 0:01:01]}  a5 {[%clk 0:01:52]} 23. h3 {[%clk 0:01:01]}  Bd7 {[%clk 0:01:52]} 24. Bh6 {[%clk 0:00:59]}  Na6 {[%clk 0:01:46]} 25. Bxg7 {[%clk 0:00:56]}  Kxg7 {[%clk 0:01:47]} 26. Qg5 {[%clk 0:00:54]}  Nc5 {[%clk 0:01:22]} 27. h4 {[%clk 0:00:35]}  h6 {[%clk 0:01:19]} 28. Qg3 {[%clk 0:00:35]}  Bf5 {[%clk 0:01:13]} 29. h5 {[%clk 0:00:33]}  g5 {[%clk 0:01:12]} 30. Rde2 {[%clk 0:00:24]}  Bg4 {[%clk 0:00:47]} 31. Re3 {[%clk 0:00:18]}  Bxh5 {[%clk 0:00:47]} 32. Ncb5 {[%clk 0:00:13]}  Rb7 {[%clk 0:00:46]} 33. Nxd6 {[%clk 0:00:12]}  exd6 {[%clk 0:00:45]} 34. Rxe8 {[%clk 0:00:12]}  Qd7 {[%clk 0:00:44]} 35. R1e7 {[%clk 0:00:12]}  Qxe7 {[%clk 0:00:44]} 36. Nf5+ {[%clk 0:00:12]}  Kf6 {[%clk 0:00:42]} 37. Nxe7 {[%clk 0:00:12]}  Rxe7 {[%clk 0:00:42]} 38. Qxd6+ {[%clk 0:00:12]} 1-0


[Site "https://www.chess.com"]

[Event "Titled Tuesday Blitz April 12 Early 2022"]
[White "Zhu, Jiner"]
[Black "Kazakouski, Valery"]
[WhiteFideId "8608059"]
[BlackFideId "13507443"]
[WhiteElo "2281"]
[BlackElo "2524"]
[Result "1/2-1/2"]
[Round "10"]
[TimeControl "180+1"]
[Date "2022.04.12"]
[WhiteClock "0:00:06"]
[BlackClock "0:00:58"]

1. e4 {[%clk 0:03:00]}  c5 {[%clk 0:02:59]} 2. Nf3 {[%clk 0:03:00]}  a6 {[%clk 0:02:59]} 3. Nc3 {[%clk 0:02:57]}  e6 {[%clk 0:02:58]} 4. d4 {[%clk 0:02:55]}  b5 {[%clk 0:02:59]} 5. dxc5 {[%clk 0:02:49]}  Bxc5 {[%clk 0:03:00]} 6. Bd3 {[%clk 0:02:48]}  Nc6 {[%clk 0:02:57]} 7. O-O {[%clk 0:02:47]}  Bb7 {[%clk 0:02:57]} 8. Qe2 {[%clk 0:02:44]}  Nge7 {[%clk 0:02:57]} 9. Be3 {[%clk 0:02:43]}  Qb6 {[%clk 0:02:56]} 10. Bxc5 {[%clk 0:02:37]}  Qxc5 {[%clk 0:02:57]} 11. e5 {[%clk 0:02:34]}  Nd4 {[%clk 0:02:45]} 12. Nxd4 {[%clk 0:02:32]}  Qxd4 {[%clk 0:02:46]} 13. Rad1 {[%clk 0:02:29]}  Qf4 {[%clk 0:02:34]} 14. Be4 {[%clk 0:02:24]}  Nc6 {[%clk 0:02:34]} 15. g3 {[%clk 0:01:53]}  Qxe5 {[%clk 0:02:03]} 16. Bxc6 {[%clk 0:01:47]}  Qxe2 {[%clk 0:02:03]} 17. Bxd7+ {[%clk 0:01:24]}  Ke7 {[%clk 0:02:03]} 18. Nxe2 {[%clk 0:01:25]}  Rhd8 {[%clk 0:02:03]} 19. Bxe6 {[%clk 0:01:02]}  fxe6 {[%clk 0:02:03]} 20. f4 {[%clk 0:01:00]}  Bd5 {[%clk 0:01:49]} 21. a3 {[%clk 0:00:54]}  Bc4 {[%clk 0:01:44]} 22. Kf2 {[%clk 0:00:52]}  Rac8 {[%clk 0:01:42]} 23. c3 {[%clk 0:00:46]}  e5 {[%clk 0:01:32]} 24. fxe5 {[%clk 0:00:40]}  Rf8+ {[%clk 0:01:32]} 25. Ke3 {[%clk 0:00:39]}  Rxf1 {[%clk 0:01:32]} 26. Rxf1 {[%clk 0:00:39]}  Rc5 {[%clk 0:01:33]} 27. Rf2 {[%clk 0:00:25]}  Rxe5+ {[%clk 0:01:31]} 28. Kd2 {[%clk 0:00:25]}  a5 {[%clk 0:01:27]} 29. Nd4 {[%clk 0:00:25]}  Rd5 {[%clk 0:01:20]} 30. Rf5 {[%clk 0:00:23]}  Rxf5 {[%clk 0:01:20]} 31. Nxf5+ {[%clk 0:00:23]}  Kf6 {[%clk 0:01:21]} 32. Nd6 {[%clk 0:00:23]}  a4 {[%clk 0:01:08]} 33. Ke3 {[%clk 0:00:20]}  Ke5 {[%clk 0:01:07]} 34. Nxc4+ {[%clk 0:00:13]}  bxc4 {[%clk 0:01:08]} 35. Kf3 {[%clk 0:00:13]}  Kf5 {[%clk 0:01:08]} 36. h3 {[%clk 0:00:13]}  Ke5 {[%clk 0:01:05]} 37. Ke3 {[%clk 0:00:12]}  g5 {[%clk 0:01:04]} 38. Kf3 {[%clk 0:00:11]}  Kf5 {[%clk 0:00:57]} 39. Ke3 {[%clk 0:00:09]}  Ke5 {[%clk 0:00:57]} 40. Kf3 {[%clk 0:00:06]}  Kf5 {[%clk 0:00:58]} 41. Ke3 {[%clk 0:00:06]}  Ke5 {[%clk 0:00:58]} 1/2-1/2


[Site "https://www.chess.com"]

[Event "Titled Tuesday Blitz April 12 Early 2022"]
[White "Allahverdiyeva, Ayan"]
[Black "Uzuner, Tufan Can"]
[WhiteFideId "13412590"]
[BlackFideId "6300499"]
[WhiteElo "1910"]
[BlackElo "2214"]
[Result "1-0"]
[Round "11"]
[TimeControl "180+1"]
[Date "2022.04.13"]
[WhiteClock "0:00:30"]
[BlackClock "0:00:29"]

1. e4 {[%clk 0:02:56]}  c6 {[%clk 0:02:59]} 2. d4 {[%clk 0:02:55]}  d5 {[%clk 0:03:00]} 3. e5 {[%clk 0:02:55]}  Bf5 {[%clk 0:03:00]} 4. Nf3 {[%clk 0:02:55]}  e6 {[%clk 0:03:00]} 5. Be2 {[%clk 0:02:56]}  Nd7 {[%clk 0:03:00]} 6. O-O {[%clk 0:02:54]}  h6 {[%clk 0:03:00]} 7. a4 {[%clk 0:02:48]}  a5 {[%clk 0:02:56]} 8. c3 {[%clk 0:02:32]}  Ne7 {[%clk 0:02:55]} 9. Na3 {[%clk 0:02:32]}  g5 {[%clk 0:02:53]} 10. Nc2 {[%clk 0:02:31]}  Bg7 {[%clk 0:02:53]} 11. Ne3 {[%clk 0:02:11]}  Bg6 {[%clk 0:02:49]} 12. b4 {[%clk 0:02:11]}  O-O {[%clk 0:02:41]} 13. Ba3 {[%clk 0:02:10]}  f6 {[%clk 0:02:35]} 14. exf6 {[%clk 0:01:57]}  Bxf6 {[%clk 0:02:33]} 15. Ng4 {[%clk 0:01:56]}  Bg7 {[%clk 0:02:32]} 16. b5 {[%clk 0:01:54]}  Bh5 {[%clk 0:02:13]} 17. Nge5 {[%clk 0:01:52]}  Nxe5 {[%clk 0:02:08]} 18. Nxe5 {[%clk 0:01:51]}  Bxe2 {[%clk 0:02:07]} 19. Qxe2 {[%clk 0:01:51]}  Rf5 {[%clk 0:02:01]} 20. bxc6 {[%clk 0:01:28]}  bxc6 {[%clk 0:01:58]} 21. Rae1 {[%clk 0:01:22]}  Bxe5 {[%clk 0:01:54]} 22. dxe5 {[%clk 0:01:22]}  Ng6 {[%clk 0:01:49]} 23. Bd6 {[%clk 0:01:21]}  Ra7 {[%clk 0:01:45]} 24. Rb1 {[%clk 0:01:20]}  Kh7 {[%clk 0:01:43]} 25. Rb8 {[%clk 0:01:17]}  Qd7 {[%clk 0:01:43]} 26. Rfb1 {[%clk 0:01:12]}  Qf7 {[%clk 0:01:37]} 27. Qe3 {[%clk 0:01:11]}  Rd7 {[%clk 0:01:34]} 28. Ra8 {[%clk 0:01:11]}  Nf4 {[%clk 0:01:11]} 29. Rbb8 {[%clk 0:01:08]}  Ng6 {[%clk 0:01:02]} 30. h3 {[%clk 0:00:48]}  Qg7 {[%clk 0:00:59]} 31. Qc5 {[%clk 0:00:33]}  Nxe5 {[%clk 0:00:45]} 32. Rh8+ {[%clk 0:00:31]}  Qxh8 {[%clk 0:00:41]} 33. Rxh8+ {[%clk 0:00:30]}  Kxh8 {[%clk 0:00:42]} 34. Bxe5+ {[%clk 0:00:31]}  Rxe5 {[%clk 0:00:41]} 35. Qd4 {[%clk 0:00:31]}  Kh7 {[%clk 0:00:34]} 36. Qxe5 {[%clk 0:00:31]}  Re7 {[%clk 0:00:35]} 37. Qd6 {[%clk 0:00:31]}  Rf7 {[%clk 0:00:35]} 38. Qxc6 {[%clk 0:00:31]}  e5 {[%clk 0:00:35]} 39. Qxd5 {[%clk 0:00:31]}  Re7 {[%clk 0:00:35]} 40. Qd6 {[%clk 0:00:31]}  Rb7 {[%clk 0:00:33]} 41. Qxe5 {[%clk 0:00:31]}  Rb1+ {[%clk 0:00:31]} 42. Kh2 {[%clk 0:00:31]}  Rb2 {[%clk 0:00:31]} 43. Qxa5 {[%clk 0:00:30]}  Rxf2 {[%clk 0:00:30]} 44. Qc7+ {[%clk 0:00:30]}  Kg6 {[%clk 0:00:30]} 45. Qb6+ {[%clk 0:00:29]}  Kh5 {[%clk 0:00:28]} 46. Qxf2 {[%clk 0:00:30]}  g4 {[%clk 0:00:28]} 47. Qf5+ {[%clk 0:00:30]}  Kh4 {[%clk 0:00:29]} 48. Qxg4# {[%clk 0:00:30]} 1-0


[Site "https://www.chess.com"]

[Event "Titled Tuesday Blitz April 12 Early 2022"]
[White "Araujo Filho, Luiz Antonio Coel"]
[Black "Kadam, Om Manish"]
[WhiteFideId "2130661"]
[BlackFideId "45076294"]
[WhiteElo "2346"]
[BlackElo "1729"]
[Result "0-1"]
[Round "11"]
[TimeControl "180+1"]
[Date "2022.04.13"]
[WhiteClock "0:00:14"]
[BlackClock "0:01:22"]

1. d4 {[%clk 0:03:00]}  Nf6 {[%clk 0:02:59]} 2. Nf3 {[%clk 0:03:01]}  g6 {[%clk 0:02:57]} 3. c4 {[%clk 0:03:01]}  Bg7 {[%clk 0:02:57]} 4. Nc3 {[%clk 0:03:02]}  d5 {[%clk 0:02:57]} 5. cxd5 {[%clk 0:03:02]}  Nxd5 {[%clk 0:02:58]} 6. e4 {[%clk 0:03:03]}  Nxc3 {[%clk 0:02:58]} 7. bxc3 {[%clk 0:03:03]}  O-O {[%clk 0:02:58]} 8. Be2 {[%clk 0:03:03]}  c5 {[%clk 0:02:58]} 9. O-O {[%clk 0:03:04]}  cxd4 {[%clk 0:02:53]} 10. cxd4 {[%clk 0:03:04]}  Nc6 {[%clk 0:02:53]} 11. Be3 {[%clk 0:03:04]}  Bg4 {[%clk 0:02:53]} 12. e5 {[%clk 0:03:04]}  Qa5 {[%clk 0:02:50]} 13. Qb3 {[%clk 0:02:56]}  Rab8 {[%clk 0:02:41]} 14. h3 {[%clk 0:02:53]}  Be6 {[%clk 0:02:38]} 15. Qb2 {[%clk 0:02:51]}  Rfd8 {[%clk 0:02:36]} 16. a3 {[%clk 0:02:49]}  b5 {[%clk 0:02:30]} 17. Rac1 {[%clk 0:02:48]}  Bd5 {[%clk 0:02:30]} 18. Nd2 {[%clk 0:02:41]}  b4 {[%clk 0:02:21]} 19. axb4 {[%clk 0:02:27]}  Rxb4 {[%clk 0:02:20]} 20. Qc3 {[%clk 0:02:27]}  Qb6 {[%clk 0:02:18]} 21. Rb1 {[%clk 0:02:04]}  a5 {[%clk 0:02:10]} 22. Rxb4 {[%clk 0:01:55]}  axb4 {[%clk 0:02:11]} 23. Qb2 {[%clk 0:01:55]}  Be6 {[%clk 0:02:11]} 24. Nf3 {[%clk 0:01:43]}  Bd5 {[%clk 0:02:10]} 25. Rd1 {[%clk 0:00:53]}  b3 {[%clk 0:02:08]} 26. Nd2 {[%clk 0:00:46]}  Qb4 {[%clk 0:02:00]} 27. Rc1 {[%clk 0:00:40]}  Na5 {[%clk 0:01:37]} 28. Rc7 {[%clk 0:00:30]}  Qb6 {[%clk 0:01:33]} 29. Rc3 {[%clk 0:00:20]}  e6 {[%clk 0:01:28]} 30. Bf3 {[%clk 0:00:18]}  Bf8 {[%clk 0:01:22]} 31. Bxd5 {[%clk 0:00:18]}  exd5 {[%clk 0:01:23]} 32. Nxb3 {[%clk 0:00:14]}  Rb8 {[%clk 0:01:22]} 0-1


[Site "https://www.chess.com"]